fUST/lending_fUST_20260527
["ID","MTS","AMOUNT","RATE_DAILY","PERIOD"]
[423121814,1779868245000,-623.17,9.589e-05,2]
[423121815,1779868245000,-500.0,9.589e-05,2]
[423121817,1779868245000,-500.0,9.589e-05,2]
[423121819,1779868245000,-500.0,9.589e-05,2]
[423121802,1779868245000,-471.81,9.589e-05,2]
[423121804,1779868245000,-958.0,9.589e-05,2]
[423121806,1779868245000,-500.0,9.589e-05,2]
[423121808,1779868245000,-1159.28,9.589e-05,2]
[423121821,1779868245000,-500.0,9.589e-05,2]
[423121797,1779868245000,-500.0,9.589e-05,2]
[423121823,1779868245000,-5669.23,9.589e-05,2]
[423121838,1779868245000,-500.0,9.863e-05,2]
[423121839,1779868245000,-500.0,9.863e-05,2]
[423121837,1779868245000,-500.0,9.863e-05,2]
[423121840,1779868245000,-525.72,9.863e-05,2]
[423121810,1779868245000,-500.0,9.589e-05,2]
[423121843,1779868245000,-414.41,9.863e-05,2]
[423121836,1779868245000,-150.03,9.863e-05,2]
[423121831,1779868245000,-185.19540227,9.74e-05,2]
[423121835,1779868245000,-956.9599,9.863e-05,2]
[423121833,1779868245000,-740.78160907,9.817e-05,2]
[423121829,1779868245000,-984.29,9.589e-05,2]
[423121827,1779868245000,-500.0,9.589e-05,2]
[423121825,1779868245000,-500.0,9.589e-05,2]
[423121999,1779868246000,-9056.99655737,0.00010216,2]
[423121983,1779868246000,-5669.23,0.00010136,2]
[423121980,1779868246000,-500.0,0.00010136,2]
[423121978,1779868246000,-360.12,0.00010136,2]
[423121985,1779868246000,-500.0,0.00010136,2]
[423121989,1779868246000,-984.29,0.00010136,2]
[423121997,1779868246000,-9065.5001364,0.00010209,2]
[423121993,1779868246000,-1891.15166651,0.00010178,2]
[423121991,1779868246000,-7336.16721147,0.00010169,2]
[423122003,1779868246000,-193.673702,0.00010298,2]
[423121987,1779868246000,-500.0,0.00010136,2]
[423121995,1779868246000,-161.10749082,0.000102,2]
[423122001,1779868246000,-10948.00686858,0.00010264,2]
[423122016,1779868246000,-500.0,0.0001041,2]
[423122007,1779868246000,-500.0,0.0001041,2]
[423122005,1779868246000,-160.0,0.0001037,3]
[423122011,1779868246000,-500.0,0.0001041,2]
[423122012,1779868246000,-500.0,0.0001041,2]
[423122015,1779868246000,-646.95,0.0001041,2]
[423122019,1779868246000,-500.0,0.0001041,2]
[423122021,1779868246000,-503.35,0.0001041,2]
[423122023,1779868246000,-500.0,0.0001041,2]
[423122034,1779868246000,-500.0,0.0001041,2]
[423122032,1779868246000,-500.0,0.0001041,2]
[423122038,1779868246000,-958.0,0.0001041,2]
[423121972,1779868246000,-500.0,0.00010136,2]
[423122009,1779868246000,-500.0,0.0001041,2]
[423121968,1779868246000,-1159.28,0.00010136,2]
[423122026,1779868246000,-500.0,0.0001041,2]
[423121964,1779868246000,-958.0,0.00010136,2]
[423121911,1779868246000,-2963.12643628,9.975e-05,2]
[423121915,1779868246000,-3260.51876065,0.00010027,2]
[423121913,1779868246000,-2264.24913934,9.979e-05,2]
[423121917,1779868246000,-720.0,0.00010031,2]
[423121919,1779868246000,-4629.88505669,0.00010053,2]
[423121923,1779868246000,-5796.47779671,0.00010121,2]
[423121921,1779868246000,-4437.92831311,0.00010075,2]
[423121927,1779868246000,-500.0,0.00010136,2]
[423121925,1779868246000,-6667.03448163,0.00010132,2]
[423121938,1779868246000,-262.69,0.00010136,2]
[423121940,1779868246000,-500.0,0.00010136,2]
[423121933,1779868246000,-581.2575,0.00010136,2]
[423121929,1779868246000,-500.0,0.00010136,2]
[423121960,1779868246000,-500.0,0.00010136,2]
[423121935,1779868246000,-500.0,0.00010136,2]
[423121931,1779868246000,-500.0,0.00010136,2]
[423121944,1779868246000,-503.35,0.00010136,2]
[423121948,1779868246000,-500.0,0.00010136,2]
[423121942,1779868246000,-500.0,0.00010136,2]
[423121946,1779868246000,-500.0,0.00010136,2]
[423121950,1779868246000,-500.0,0.00010136,2]
[423121952,1779868246000,-500.0,0.00010136,2]
[423121962,1779868246000,-1519.97,0.00010136,2]
[423121966,1779868246000,-249.75,0.00010136,2]
[423121956,1779868246000,-1332.49,0.00010136,2]
[423121958,1779868246000,-500.0,0.00010136,2]
[423121970,1779868246000,-500.0,0.00010136,2]
[423121954,1779868246000,-303.7,0.00010136,2]
[423121937,1779868246000,-646.95,0.00010136,2]
[423122042,1779868246000,-500.0,0.0001041,2]
[423122036,1779868246000,-1519.97,0.0001041,2]
[423122024,1779868246000,-500.0,0.0001041,2]
[423122097,1779868246000,-221.862206,0.00010564,2]
[423122101,1779868246000,-500.0,0.00010684,2]
[423122107,1779868246000,-500.0,0.00010684,2]
[423122117,1779868246000,-500.0,0.00010684,2]
[423122112,1779868246000,-500.0,0.00010684,2]
[423122115,1779868246000,-503.35,0.00010684,2]
[423122109,1779868246000,-646.95,0.00010684,2]
[423122110,1779868246000,-500.0,0.00010684,2]
[423122121,1779868246000,-500.0,0.00010684,2]
[423122119,1779868246000,-166.99,0.00010684,2]
[423122123,1779868246000,-500.0,0.00010684,2]
[423122130,1779868246000,-1519.97,0.00010684,2]
[423122138,1779868246000,-500.0,0.00010684,2]
[423122140,1779868246000,-500.0,0.00010684,2]
[423122125,1779868246000,-1332.49,0.00010684,2]
[423122136,1779868246000,-564.49029711,0.00010684,2]
[423122132,1779868246000,-958.0,0.00010684,2]
[423122127,1779868246000,-500.0,0.00010684,2]
[423122128,1779868246000,-500.0,0.00010684,2]
[423122142,1779868246000,-5669.23,0.00010684,2]
[423122146,1779868246000,-500.0,0.00010684,2]
[423122144,1779868246000,-500.0,0.00010684,2]
[423122150,1779868246000,-322.20924501,0.0001078,2]
[423122152,1779868246000,-1152.0,0.00010858,2]
[423122154,1779868246000,-160.0,0.00010875,5]
[423122148,1779868246000,-984.29,0.00010684,2]
[423122041,1779868246000,-1159.28,0.0001041,2]
[423122105,1779868246000,-500.0,0.00010684,2]
[423122103,1779868246000,-500.0,0.00010684,2]
[423122134,1779868246000,-1159.28,0.00010684,2]
[423122095,1779868246000,-190.931103,0.00010564,2]
[423122099,1779868246000,-160.0,0.00010623,4]
[423122028,1779868246000,-500.0,0.0001041,2]
[423122047,1779868246000,-500.0,0.0001041,2]
[423122045,1779868246000,-500.0,0.0001041,2]
[423122053,1779868246000,-500.0,0.0001041,2]
[423122057,1779868246000,-4250.8361584,0.00010418,2]
[423122061,1779868246000,-164.14,0.00010535,2]
[423122065,1779868246000,-164.14,0.00010535,2]
[423122059,1779868246000,-145609.81210268,0.000105,2]
[423122067,1779868246000,-164.14,0.00010535,2]
[423122063,1779868246000,-164.14,0.00010535,2]
[423122070,1779868246000,-164.14,0.00010537,2]
[423122055,1779868246000,-984.29,0.0001041,2]
[423122049,1779868246000,-5669.23,0.0001041,2]
[423122030,1779868246000,-1332.49,0.0001041,2]
[423122088,1779868246000,-164.14,0.00010539,2]
[423122089,1779868246000,-164.14,0.00010539,2]
[423122091,1779868246000,-479.60158,0.00010564,2]
[423122084,1779868246000,-164.14,0.00010539,2]
[423122069,1779868246000,-164.14,0.00010535,2]
[423122093,1779868246000,-160.0,0.00010564,2]
[423122087,1779868246000,-164.14,0.00010539,2]
[423122082,1779868246000,-164.14,0.00010539,2]
[423122078,1779868246000,-164.14,0.00010537,2]
[423122077,1779868246000,-164.14,0.00010537,2]
[423122074,1779868246000,-164.14,0.00010537,2]
[423122072,1779868246000,-164.14,0.00010537,2]
[423122051,1779868246000,-500.0,0.0001041,2]
[423122081,1779868246000,-164.1,0.00010539,2]
[423122235,1779868247000,-151.0,0.000112,2]
[423122236,1779868247000,-151.0,0.000112,2]
[423122227,1779868247000,-151.0,0.000111,2]
[423122228,1779868247000,-151.0,0.000111,2]
[423122231,1779868247000,-5000.0,0.00011126,2]
[423122219,1779868247000,-151.0,0.00011,2]
[423122221,1779868247000,-794.0,0.00011,2]
[423122226,1779868247000,-151.0,0.000111,2]
[423122225,1779868247000,-151.0,0.000111,2]
[423122224,1779868247000,-151.0,0.000111,2]
[423122223,1779868247000,-864.0,0.00011034,2]
[423122233,1779868247000,-160.0,0.00011127,6]
[423122229,1779868247000,-5002.7876236,0.00011126,2]
[423122238,1779868247000,-151.0,0.000112,2]
[423122250,1779868247000,-500.0,0.00011232,2]
[423122254,1779868247000,-646.95,0.00011232,2]
[423122256,1779868247000,-500.0,0.00011232,2]
[423122244,1779868247000,-151.0,0.000112,2]
[423122258,1779868247000,-503.35,0.00011232,2]
[423122242,1779868247000,-151.0,0.000112,2]
[423122259,1779868247000,-500.0,0.00011232,2]
[423122246,1779868247000,-500.0,0.00011232,2]
[423122261,1779868247000,-500.0,0.00011232,2]
[423122248,1779868247000,-500.0,0.00011232,2]
[423122252,1779868247000,-607.2,0.00011232,2]
[423122264,1779868247000,-500.0,0.00011232,2]
[423122266,1779868247000,-1332.49,0.00011232,2]
[423122268,1779868247000,-1519.97,0.00011232,2]
[423122240,1779868247000,-151.0,0.000112,2]
[423122208,1779868247000,-151.0,0.00011,2]
[423122162,1779868247000,-500.0,0.00010958,2]
[423122202,1779868247000,-184.462146,0.00010996,2]
[423122160,1779868247000,-500.0,0.00010958,2]
[423122164,1779868247000,-646.95,0.00010958,2]
[423122274,1779868247000,-245.02,0.00011232,2]
[423122156,1779868247000,-500.0,0.00010958,2]
[423122170,1779868247000,-503.35,0.00010958,2]
[423122166,1779868247000,-500.0,0.00010958,2]
[423122168,1779868247000,-500.0,0.00010958,2]
[423122158,1779868247000,-500.0,0.00010958,2]
[423122171,1779868247000,-621.60922084,0.00010958,2]
[423122173,1779868247000,-500.0,0.00010958,2]
[423122183,1779868247000,-1519.97,0.00010958,2]
[423122177,1779868247000,-1332.49,0.00010958,2]
[423122179,1779868247000,-444.51,0.00010958,2]
[423122181,1779868247000,-262.52,0.00010958,2]
[423122217,1779868247000,-151.0,0.00011,2]
[423122175,1779868247000,-500.0,0.00010958,2]
[423122185,1779868247000,-958.0,0.00010958,2]
[423122191,1779868247000,-500.0,0.00010958,2]
[423122196,1779868247000,-500.0,0.00010958,2]
[423122194,1779868247000,-500.0,0.00010958,2]
[423122193,1779868247000,-5669.23,0.00010958,2]
[423122189,1779868247000,-374.46533023,0.00010958,2]
[423122198,1779868247000,-984.29,0.00010958,2]
[423122211,1779868247000,-188.0,0.00011,2]
[423122200,1779868247000,-15000.0,0.00010959,2]
[423122204,1779868247000,-3137.71712823,0.00011,2]
[423122215,1779868247000,-151.0,0.00011,2]
[423122206,1779868247000,-200.0,0.00011,2]
[423122209,1779868247000,-151.0,0.00011,2]
[423122214,1779868247000,-151.0,0.00011,2]
[423122187,1779868247000,-1159.28,0.00010958,2]
[423122277,1779868247000,-500.0,0.00011232,2]
[423122272,1779868247000,-1159.28,0.00011232,2]
[423122281,1779868247000,-984.29,0.00011232,2]
[423122327,1779868247000,-500.0,0.00011506,2]
[423122330,1779868247000,-500.0,0.00011506,2]
[423122336,1779868247000,-5669.23,0.00011506,2]
[423122338,1779868247000,-500.0,0.00011506,2]
[423122337,1779868247000,-500.0,0.00011506,2]
[423122326,1779868247000,-646.95,0.00011506,2]
[423122334,1779868247000,-958.0,0.00011506,2]
[423122328,1779868247000,-503.35,0.00011506,2]
[423122329,1779868247000,-500.0,0.00011506,2]
[423122332,1779868247000,-1332.49,0.00011506,2]
[423122335,1779868247000,-1159.28,0.00011506,2]
[423122333,1779868247000,-1519.97,0.00011506,2]
[423122340,1779868247000,-416.0,0.00011507,3]
[423122351,1779868247000,-151.0,0.000116,2]
[423122325,1779868247000,-500.0,0.00011506,2]
[423122343,1779868247000,-2887.470689,0.00011525,2]
[423122350,1779868247000,-151.0,0.000116,2]
[423122342,1779868247000,-160.0,0.00011525,2]
[423122339,1779868247000,-984.29,0.00011506,2]
[423122352,1779868247000,-151.0,0.000116,2]
[423122344,1779868247000,-5614.941378,0.00011525,2]
[423122345,1779868247000,-160.0,0.00011525,2]
[423122346,1779868247000,-513.637303,0.00011525,2]
[423122347,1779868247000,-867.274607,0.00011525,2]
[423122348,1779868247000,-483.28,0.000116,2]
[423122349,1779868247000,-151.0,0.000116,2]
[423122354,1779868247000,-151.0,0.000116,2]
[423122353,1779868247000,-151.0,0.000116,2]
[423122355,1779868247000,-160.0,0.00011632,8]
[423122270,1779868247000,-958.0,0.00011232,2]
[423122341,1779868247000,-326.0859053,0.00011509,2]
[423122324,1779868247000,-564.17,0.00011506,2]
[423122331,1779868247000,-460.26,0.00011506,2]
[423122319,1779868247000,-151.0,0.000115,2]
[423122285,1779868247000,-151.0,0.000113,2]
[423122276,1779868247000,-5669.23,0.00011232,2]
[423122323,1779868247000,-500.0,0.00011506,2]
[423122280,1779868247000,-500.0,0.00011232,2]
[423122287,1779868247000,-151.0,0.000113,2]
[423122289,1779868247000,-151.0,0.000113,2]
[423122291,1779868247000,-151.0,0.000113,2]
[423122293,1779868247000,-151.0,0.000113,2]
[423122295,1779868247000,-160.0,0.00011379,7]
[423122301,1779868247000,-151.0,0.000114,2]
[423122303,1779868247000,-960.272462,0.00011429,2]
[423122305,1779868247000,-160.0,0.00011429,2]
[423122302,1779868247000,-160.0,0.00011429,2]
[423122296,1779868247000,-151.0,0.000114,2]
[423122304,1779868247000,-1760.544925,0.00011429,2]
[423122283,1779868247000,-184.740515,0.00011294,2]
[423122307,1779868247000,-254.217532,0.00011429,2]
[423122300,1779868247000,-151.0,0.000114,2]
[423122322,1779868247000,-151.0,0.000115,2]
[423122315,1779868247000,-151.0,0.000115,2]
[423122317,1779868247000,-151.0,0.000115,2]
[423122313,1779868247000,-151.0,0.000115,2]
[423122310,1779868247000,-696.202527,0.00011429,2]
[423122309,1779868247000,-428.101263,0.00011429,2]
[423122321,1779868247000,-151.0,0.000115,2]
[423122312,1779868247000,-1946.91080653,0.00011486,2]
[423122308,1779868247000,-160.0,0.00011429,2]
[423122298,1779868247000,-151.0,0.000114,2]
[423122299,1779868247000,-151.0,0.000114,2]
[423122306,1779868247000,-207.108766,0.00011429,2]
[423122311,1779868247000,-252.80281,0.00011486,2]
[423122373,1779868248000,-5669.23,0.0001178,2]
[423122374,1779868248000,-462.18,0.0001178,2]
[423122371,1779868248000,-958.0,0.0001178,2]
[423122370,1779868248000,-1519.97,0.0001178,2]
[423122369,1779868248000,-1332.49,0.0001178,2]
[423122380,1779868248000,-151.0,0.000118,2]
[423122377,1779868248000,-151.0,0.000118,2]
[423122378,1779868248000,-151.0,0.000118,2]
[423122375,1779868248000,-546.09,0.0001178,2]
[423122376,1779868248000,-984.29,0.0001178,2]
[423122382,1779868248000,-490.90026745,0.00011867,2]
[423122368,1779868248000,-500.0,0.0001178,2]
[423122379,1779868248000,-151.0,0.000118,2]
[423122357,1779868248000,-151.0,0.000117,2]
[423122367,1779868248000,-500.0,0.0001178,2]
[423122356,1779868248000,-151.0,0.000117,2]
[423122359,1779868248000,-151.0,0.000117,2]
[423122360,1779868248000,-151.0,0.000117,2]
[423122358,1779868248000,-151.0,0.000117,2]
[423122362,1779868248000,-500.0,0.0001178,2]
[423122361,1779868248000,-188.0,0.0001174,2]
[423122363,1779868248000,-500.0,0.0001178,2]
[423122365,1779868248000,-500.0,0.0001178,2]
[423122366,1779868248000,-503.35,0.0001178,2]
[423122364,1779868248000,-646.95,0.0001178,2]
[423122381,1779868248000,-324.50180109,0.00011821,12]
[423122372,1779868248000,-1159.28,0.0001178,2]
[423122391,1779868248000,-315002.69903185,0.000119,2]
[423122415,1779868248000,-156.1,0.00012,2]
[423122390,1779868248000,-493.962996,0.00011895,2]
[423122419,1779868248000,-31798.61533833,0.00012,2]
[423122413,1779868248000,-156.1,0.00012,2]
[423122417,1779868248000,-156.1,0.00012,2]
[423122410,1779868248000,-150.92,0.00012,2]
[423122409,1779868248000,-150.92,0.00012,2]
[423122405,1779868248000,-150.98,0.00012,2]
[423122406,1779868248000,-150.92,0.00012,2]
[423122404,1779868248000,-150.98,0.00012,2]
[423122407,1779868248000,-150.92,0.00012,2]
[423122408,1779868248000,-150.92,0.00012,2]
[423122389,1779868248000,-238.971653,0.00011895,2]
[423122401,1779868248000,-464.397968,0.00011995,2]
[423122402,1779868248000,-3331.696948,0.00011995,2]
[423122403,1779868248000,-395.105618,0.00011995,2]
[423122395,1779868248000,-151.0,0.000119,2]
[423122392,1779868248000,-79847.08112607,0.000119,2]
[423122385,1779868248000,-10180.4287123,0.00011888,2]
[423122400,1779868248000,-332.665398,0.00011995,2]
[423122384,1779868248000,-6193.0788516,0.00011884,2]
[423122387,1779868248000,-3832.735915,0.0001189,2]
[423122388,1779868248000,-1108.006687,0.00011895,2]
[423122383,1779868248000,-160.0,0.00011884,9]
[423122397,1779868248000,-1613.0,0.00011944,2]
[423122399,1779868248000,-2814.13673526,0.00011988,2]
[423122394,1779868248000,-151.0,0.000119,2]
[423122396,1779868248000,-15461.36620107,0.000119,2]
[423122398,1779868248000,-353.74579,0.00011955,2]
[423122393,1779868248000,-151.0,0.000119,2]
[423122518,1779868249000,-500.0,8.767e-05,2]
[423122506,1779868249000,-773.89920145,8.047e-05,2]
[423122508,1779868249000,-183.48793947,8.128e-05,2]
[423122512,1779868249000,-183.48793947,8.219e-05,2]
[423122510,1779868249000,-500.0,8.219e-05,2]
[423122514,1779868249000,-152.0,8.251e-05,2]
[423122522,1779868249000,-160.0,0.0001081,2]
[423122560,1779868249000,-3844.58028261,0.00012,2]
[423122516,1779868249000,-500.0,8.493e-05,2]
[423122562,1779868249000,-2114.57673056,0.00012,2]
[423122530,1779868249000,-31796.32145939,0.00012,2]
[423122538,1779868249000,-405.18115414,0.00012,2]
[423122520,1779868249000,-309.71,9.041e-05,2]
[423122526,1779868249000,-489.167294,0.0001081,2]
[423122524,1779868249000,-324.583647,0.0001081,2]
[423122528,1779868249000,-249.679728,0.00011251,2]
[423125612,1779868831000,200.0,0.00018936,120]
[423125613,1779868853000,-5000.0,6.91e-05,2]
[423125614,1779868870000,-1550.61185572,6.98e-05,2]
[423125615,1779868887000,-380.32,6.91e-05,2]
[423125617,1779868904000,-500.0,7.337e-05,2]
[423125620,1779868921000,-500.0,7.337e-05,2]
[423125621,1779868937000,-300.0,7.336e-05,2]
[423125622,1779868954000,-202.876318,7.5e-05,2]
[423125623,1779868971000,-367.0,8.07e-05,2]
[423125690,1779869371000,200.0,0.00019154,120]
[423125790,1779869434000,-500.0,7.743e-05,2]
[423125785,1779869434000,-305.09861426,7.591e-05,2]
[423125786,1779869434000,-300.0,7.743e-05,2]
[423125787,1779869434000,-500.0,7.743e-05,2]
[423125792,1779869434000,-500.0,7.743e-05,2]
[423125796,1779869434000,-177.24854327,7.743e-05,2]
[423125795,1779869434000,-500.0,7.743e-05,2]
[423125791,1779869434000,-500.0,7.743e-05,2]
[423125794,1779869434000,-500.0,7.743e-05,2]
[423125789,1779869434000,-500.0,7.743e-05,2]
[423125793,1779869434000,-500.0,7.743e-05,2]
[423125788,1779869434000,-500.0,7.743e-05,2]
[423126011,1779869438000,-500.0,7.743e-05,2]
[423126000,1779869438000,-322.75145673,7.743e-05,2]
[423126002,1779869438000,-500.0,7.743e-05,2]
[423126008,1779869438000,-500.0,7.743e-05,2]
[423126003,1779869438000,-500.0,7.743e-05,2]
[423126007,1779869438000,-224.28647422,7.743e-05,2]
[423126012,1779869438000,-500.0,7.743e-05,2]
[423126006,1779869438000,-500.0,7.743e-05,2]
[423126001,1779869438000,-500.0,7.743e-05,2]
[423126005,1779869438000,-500.0,7.743e-05,2]
[423126004,1779869438000,-500.0,7.743e-05,2]
[423126009,1779869438000,-500.0,7.743e-05,2]
[423126014,1779869438000,-97.70785312,7.743e-05,2]
[423126015,1779869438000,-400.02095422,7.743e-05,2]
[423126010,1779869438000,-500.0,7.743e-05,2]
[423126037,1779869441000,-342.48038862,7.745e-05,2]
[423126035,1779869441000,-500.0,7.743e-05,2]
[423126033,1779869441000,-2.27119266,7.743e-05,2]
[423126034,1779869441000,-500.0,7.743e-05,2]
[423126036,1779869441000,-378.44309598,7.743e-05,2]
[423126038,1779869441000,-500.0,7.745e-05,2]
[423126041,1779869441000,-500.0,7.745e-05,2]
[423126039,1779869441000,-500.0,7.745e-05,2]
[423126045,1779869441000,-500.0,7.745e-05,2]
[423126043,1779869441000,-474.91388792,7.745e-05,2]
[423126046,1779869441000,-306.65957065,7.745e-05,2]
[423126042,1779869441000,-171.5946913,7.745e-05,2]
[423126044,1779869441000,-25.08611208,7.745e-05,2]
[423126040,1779869441000,-500.0,7.745e-05,2]
[423126078,1779869444000,-1891.0220345,7.746e-05,2]
[423126067,1779869444000,-395.39681755,7.745e-05,2]
[423126068,1779869444000,-52.12236955,7.745e-05,2]
[423126070,1779869444000,-500.0,7.745e-05,2]
[423126059,1779869444000,-500.0,7.745e-05,2]
[423126058,1779869444000,-193.34042935,7.745e-05,2]
[423126060,1779869444000,-104.60318245,7.745e-05,2]
[423126072,1779869444000,-500.0,7.745e-05,2]
[423126079,1779869444000,-500.68,7.746e-05,2]
[423126069,1779869444000,-447.87763045,7.745e-05,2]
[423126074,1779869444000,-13415.54049557,7.746e-05,2]
[423126073,1779869444000,-500.0,7.745e-05,2]
[423126075,1779869444000,-10102.84651815,7.746e-05,2]
[423126077,1779869444000,-927.1608562,7.746e-05,2]
[423126076,1779869444000,-4239.13753481,7.746e-05,2]
[423126071,1779869444000,-500.0,7.745e-05,2]
[423126080,1779869444000,-418.93857618,7.746e-05,2]
[423126110,1779869447000,-500.0,8.219e-05,2]
[423126109,1779869447000,-500.0,8.219e-05,2]
[423126111,1779869447000,-500.0,8.219e-05,2]
[423126115,1779869447000,-500.0,8.219e-05,2]
[423126120,1779869447000,-446.82160767,8.219e-05,2]
[423126112,1779869447000,-1000.0,8.219e-05,2]
[423126119,1779869447000,-500.0,8.219e-05,2]
[423126116,1779869447000,-500.0,8.219e-05,2]
[423126104,1779869447000,-500.0,8.219e-05,2]
[423126117,1779869447000,-500.0,8.219e-05,2]
[423126118,1779869447000,-500.0,8.219e-05,2]
[423126122,1779869447000,-500.0,8.219e-05,2]
[423126125,1779869447000,-500.0,8.219e-05,2]
[423126124,1779869447000,-500.0,8.219e-05,2]
[423126126,1779869447000,-257.49098233,8.219e-05,2]
[423126114,1779869447000,-500.0,8.219e-05,2]
[423126108,1779869447000,-500.0,8.219e-05,2]
[423126105,1779869447000,-500.92583587,8.219e-05,2]
[423126106,1779869447000,-500.0,8.219e-05,2]
[423126128,1779869447000,-500.0,8.219e-05,2]
[423126089,1779869447000,-536.9215,8.219e-05,2]
[423126088,1779869447000,-152463.96886187,7.746e-05,2]
[423126090,1779869447000,-305.8522856,8.219e-05,2]
[423126093,1779869447000,-500.0,8.219e-05,2]
[423126094,1779869447000,-200.04006373,8.219e-05,2]
[423126091,1779869447000,-500.0,8.219e-05,2]
[423126092,1779869447000,-500.0,8.219e-05,2]
[423126095,1779869447000,-420.63593266,8.219e-05,2]
[423126097,1779869447000,-431.12575117,8.219e-05,2]
[423126096,1779869447000,-500.0,8.219e-05,2]
[423126098,1779869447000,-500.0,8.219e-05,2]
[423126099,1779869447000,-500.0,8.219e-05,2]
[423126107,1779869447000,-500.0,8.219e-05,2]
[423126101,1779869447000,-500.0,8.219e-05,2]
[423126100,1779869447000,-500.0,8.219e-05,2]
[423126103,1779869447000,-500.0,8.219e-05,2]
[423126102,1779869447000,-500.0,8.219e-05,2]
[423126134,1779869447000,-500.0,8.219e-05,2]
[423126121,1779869447000,-500.0,8.219e-05,2]
[423126132,1779869447000,-500.0,8.219e-05,2]
[423126154,1779869447000,-311.58494541,8.493e-05,2]
[423126157,1779869447000,-500.0,8.493e-05,2]
[423126156,1779869447000,-500.0,8.493e-05,2]
[423126158,1779869447000,-500.0,8.493e-05,2]
[423126161,1779869447000,-573.43391092,8.493e-05,2]
[423126159,1779869447000,-555.2,8.493e-05,2]
[423126160,1779869447000,-500.0,8.493e-05,2]
[423126162,1779869447000,-59.88608908,8.493e-05,2]
[423126155,1779869447000,-1000.0,8.493e-05,2]
[423126164,1779869447000,-193.88608908,8.493e-05,2]
[423126167,1779869447000,-500.0,8.493e-05,2]
[423126166,1779869447000,-500.0,8.493e-05,2]
[423126163,1779869447000,-306.11391092,8.493e-05,2]
[423126171,1779869447000,-188.65280492,8.493e-05,2]
[423126170,1779869447000,-500.0,8.493e-05,2]
[423126169,1779869447000,-2570.52,8.493e-05,2]
[423126168,1779869447000,-500.0,8.493e-05,2]
[423126130,1779869447000,-555.2,8.219e-05,2]
[423126165,1779869447000,-500.0,8.493e-05,2]
[423126145,1779869447000,-500.0,8.219e-05,2]
[423126113,1779869447000,-500.0,8.219e-05,2]
[423126144,1779869447000,-500.0,8.219e-05,2]
[423126131,1779869447000,-500.0,8.219e-05,2]
[423126127,1779869447000,-500.0,8.219e-05,2]
[423126123,1779869447000,-500.0,8.219e-05,2]
[423126129,1779869447000,-500.0,8.219e-05,2]
[423126136,1779869447000,-500.0,8.219e-05,2]
[423126147,1779869447000,-500.0,8.219e-05,2]
[423126146,1779869447000,-500.0,8.219e-05,2]
[423126149,1779869447000,-536.9215,8.493e-05,2]
[423126133,1779869447000,-633.32,8.219e-05,2]
[423126140,1779869447000,-500.0,8.219e-05,2]
[423126135,1779869447000,-500.0,8.219e-05,2]
[423126138,1779869447000,-500.0,8.219e-05,2]
[423126139,1779869447000,-2570.52,8.219e-05,2]
[423126137,1779869447000,-500.0,8.219e-05,2]
[423126143,1779869447000,-500.0,8.219e-05,2]
[423126141,1779869447000,-162.4520005,8.219e-05,2]
[423126142,1779869447000,-276.27643913,8.219e-05,2]
[423126151,1779869447000,-188.41505459,8.493e-05,2]
[423126173,1779869971000,200.0,0.00018954,120]